Cogmind - Beta 16.1 @@@ ROGUE MODE // 2026.03.13 @ 16:59:06 Player: Kaisercar Result: Destroyed by Executioner with Helical Railgun Performance ------------- Evolutions (8) 4000 Regions Visited (20) 4000 Robots Destroyed (154) 770 Value Destroyed (9169) 9169 Prototype IDs (113) 2260 Alien Tech Used (1) 200 Bonus (8462) 8462 TOTAL SCORE: 28861 Bonus ------- High Alert Combat Kills 7007 Follower Combat Kills 257 Registered with UFD 300 Met Optimus in HQ 500 Met Zhirov 300 Met Optimus at Protoforge 1000 Friendly Fire -902 Cogmind --------- Core Integrity 0/1450 Matter 270/300 Energy 405/415 System Corruption 18% Temperature Cool (46) Movement Walking (116) Location -2/Protoforge Parts ------- > --- POWER (2) -------- Antimatter Reactor Light Quantum Reactor > --- PROPULSION (7) --- Enhanced Biometal Leg Enhanced Biometal Leg Enhanced Biometal Leg Heavy Shield Leg Heavy Shield Leg > --- UTILITY (12) ----- Experimental Optical Array Experimental Targeting Computer Experimental Core Analyzer Experimental Core Analyzer Experimental Core Analyzer Experimental Core Analyzer Improved Armor Integrity Analyzer Experimental Weapon Shielding > --- WEAPON (2) ------- Railgun Helical Railgun > --- INVENTORY (5) ---- Enhanced Biometal Leg Concept Core Shell Helical Railgun Peak State ------------ > --- POWER ------------ Micro Antimatter Reactor Hybrid Graviton Reactor > --- PROPULSION ------- Impulse Thruster Array Impulse Thruster Array Experimental Surge Thruster Experimental Surge Thruster Experimental Surge Thruster > --- UTILITY ---------- Medium Storage Unit Experimental Optical Array Advanced Sensor Array Experimental Core Analyzer Experimental Core Analyzer Experimental Core Analyzer Experimental Core Analyzer Experimental Reaction Control System Phase Shifter Makeshift Propulsion Shielding Experimental Weapon Shielding Centrium Light Armor Plating > --- WEAPON ----------- Helical Railgun Plasma Sword > --- INVENTORY -------- UFD Drillbomb [Rating: 196] Favorites ----------- Power Ion Engine Engine Ion Engine Power Core Light Nuclear Core Reactor Hybrid Graviton Reactor Propulsion Light Treads Treads Light Treads Leg Enhanced Biometal Leg Wheel Wheel Hover Unit Antigrav System Flight Unit Impulse Thruster Array Utility High-capacity Storage Unit Device Seismic Detector Storage High-capacity Storage Unit Processor Experimental Core Analyzer Hackware Makeshift Hacking Suite Protection Makeshift Propulsion Shielding Weapon EM Pulse Gun Energy Gun EM Pulse Gun Energy Cannon Beam Cannon Ballistic Gun Assault Rifle Ballistic Cannon Compact Linear Accelerator Launcher Grenade Launcher Impact Weapon Makeshift Hammer Slashing Weapon Plasma Sword Piercing Weapon Makeshift Spear Build | -11 -10 -10 -10 -8 -6 -6 -6 -6 -5 -5 -4 -4 -4 -4 -3 -3 -3 -2 -2 -2 ------- Run | Yrd Mat Min Sub Scr Fac Low Low Zio Pro Fac Fac Upp Upp Zhi Pro Res Tes Res Qua Frg Slots Evolved 16 | . . . . . 8 . . . . 2 2 . . . . 2 . 2 . . Power 1 | . . . . . . . . . . . . . . . . . . 1 . . Propulsion 5 | . . . . . 3 . . . . . 1 . . . . . . 1 . . Utility 10 | . . . . . 5 . . . . 2 1 . . . . 2 . . . . Weapon . | . . . . . . . . . . . . . . . . . . . . . Parts Attached 223 | 7 1 7 11 3 18 1 3 . 1 5 11 4 6 6 4 1 12 1 11 110 Power 25 | 1 . 1 3 1 . . . . . 1 2 . 1 1 . . 2 . 2 10 Engine 7 | 1 . 1 2 . . . . . . 1 . . 1 . . . . . . 1 Core 2 | . . . 1 1 . . . . . . . . . . . . . . . . Reactor 16 | . . . . . . . . . . . 2 . . 1 . . 2 . 2 9 Propulsion 56 | 2 . 1 1 1 8 . 1 . . . 2 3 1 3 1 . . 1 3 28 Treads 3 | 2 . . . . . . . . . . . 1 . . . . . . . . Leg 6 | . . . . . . . . . . . . . . . . . . . . 6 Wheel 3 | . . 1 1 1 . . . . . . . . . . . . . . . . Hover 1 | . . . . . . . . . . . . 1 . . . . . . . . Flight 43 | . . . . . 8 . 1 . . . 2 1 1 3 1 . . 1 3 22 Utility 100 | 2 1 1 3 1 9 1 2 . 1 3 5 1 3 2 . 1 8 . 6 50 Device 31 | 1 . . 1 1 3 . 1 . 1 1 3 1 2 1 . . 5 . 4 6 Storage 4 | 1 1 . . . 1 . . . . . . . . . . . . . 1 . Processor 30 | . . . . . 3 1 . . . 1 . . 1 . . . . . 1 23 Hackware 7 | . . . . . 2 . 1 . . 1 1 . . . . 1 1 . . . Protection 28 | . . 1 2 . . . . . . . 1 . . 1 . . 2 . . 21 Artifact . | . . . . . . . . . . . . . . . . . . . . . Weapon 42 | 2 . 4 4 . 1 . . . . 1 2 . 1 . 3 . 2 . . 22 Energy Gun 6 | 1 . 1 1 . . . . . . . . . . . . . . . . 3 Energy Cannon 3 | . . 1 . . . . . . . . . . . . 1 . . . . 1 Ballistic Gun 15 | 1 . . 1 . . . . . . . . . . . 1 . . . . 12 Ballistic Cannon 7 | . . . 1 . . . . . . . . . . . 1 . . . . 5 Launcher 4 | . . 1 . . . . . . . . 1 . . . . . 1 . . 1 Special Weapon . | . . . . . . . . . . . . . . . . . . . . . Impact Weapon 3 | . . . 1 . . . . . . 1 1 . . . . . . . . . Slashing Weapon 3 | . . 1 . . 1 . . . . . . . . . . . 1 . . . Piercing Weapon 1 | . . . . . . . . . . . . . 1 . . . . . . . Special Melee Weapon . | . . . . . . . . . . . . . . . . . . . . . Unidentified Prototypes 27 | . . . . . . . . . . . . . . 5 . . 6 . 2 14 Corrupted Parts 1 | . . . . . . . . . . . . . . . . . 1 . . . System Corruption 6 | . . . . . . . . . . . . . . . . . 6 . . . Parts Lost 72 | . . 3 4 . . . 1 . 4 . 5 3 . . . . 1 4 . 47 Power 11 | . . 1 2 . . . . . 1 . . . . . . . 1 . . 6 Propulsion 26 | . . 1 1 . . . 1 . 2 . 4 1 . . . . . 1 . 15 Utility 24 | . . . . . . . . . . . 1 1 . . . . . 3 . 19 Weapon 11 | . . 1 1 . . . . . 1 . . 1 . . . . . . . 7 Highest Loss Streak 9 | . . 2 3 . . . 1 . 3 . 3 2 . . . . 1 4 . 9 To Critical Strikes . | . . . . . . . . . . . . . . . . . . . . . Average Backups 10 | 2 10 16 18 19 9 10 9 10 9 9 8 4 5 5 5 4 4 3 7 1 Power . | . 1 2 1 . . . . . . . . . 1 2 2 2 1 . 1 . Propulsion 3 | 1 4 4 7 6 1 2 1 1 . . . . . . . . . . . . Utility 4 | . 3 5 6 10 5 6 6 8 8 8 6 3 3 3 3 2 2 2 3 . Weapon 1 | . 1 4 3 1 2 2 1 1 1 1 1 . . . . . . 1 1 . Tool/Special . | . . . . . . . . . . . . . . . . . . . . . Unused Backups 35 | . . 10 4 4 6 . 2 . . . 5 . . . . . 1 . . 3 Power 2 | . . . . 1 . . . . . . . . . . . . 1 . . . Propulsion 13 | . . 7 2 2 1 . . . . . . . . . . . . . . 1 Utility 14 | . . . 2 1 3 . 1 . . . 5 . . . . . . . . 2 Weapon 6 | . . 3 . . 2 . 1 . . . . . . . . . . . . . Tool/Special . | . . . . . . . . . . . . . . . . . . . . . Average Slot Usage (%) 90 | . 99 99 97 90 91 93 92 93 91 84 80 64 79 89 98 95 97 93 94 81 Engine 6 | . 14 13 12 8 . . . . . 4 1 . 4 3 . . . . . . Core 1 | . . . 1 5 6 6 6 6 5 . . . . . . . . . . . Reactor 1 | . . . . . . . . . . . 2 2 . 1 5 4 4 6 7 5 Treads 6 | . 27 21 9 . . . . . . . . 1 3 . . . . . . . Wheel 5 | . . 6 16 19 . . . . . . . . . . . . . . . . Flight 12 | . . . . . 32 33 32 33 31 23 20 11 11 23 31 28 28 28 28 20 Device 10 | . 13 . 12 14 10 6 6 6 6 6 8 12 19 20 21 19 19 14 16 9 Storage 8 | . 14 14 14 14 6 6 6 6 6 5 3 . . . . . . . 3 3 Processor 11 | . . . . . 19 20 20 20 20 22 21 21 22 21 21 19 19 15 13 23 Hackware 3 | . . . . . 7 13 13 13 13 15 16 10 10 10 10 14 14 13 13 1 Protection 3 | . . 13 1 . . . . . . . . . . . . . 1 4 4 9 Energy Gun 3 | . 14 14 5 2 . . . . . . . . . . . . . . . . Energy Cannon 2 | . . . 9 . . . . . . . . . . . . 4 3 4 1 . Ballistic Gun 2 | . 13 12 1 . . . . . . . . . . . . . . . . 1 Ballistic Cannon 2 | . . . 7 . . . . . . . . . . . 2 . . . . 2 Launcher 1 | . . . . 14 . . . . . . . . . . . . . . . . Impact Weapon 2 | . . . 2 11 . . . . . 3 4 . 1 5 5 4 2 . . . Slashing Weapon 1 | . . 1 . . 5 6 6 6 5 . . . . . . . 1 4 4 1 Peak Build Rating 196 | 7 8 9 16 18 51 53 58 58 59 60 79 69 86 91 101 106 118 133 143 196 Average Rating 63 | 5 7 8 11 14 45 51 55 58 57 58 67 57 76 81 98 106 111 123 131 157 On Entrance 58 | . 7 8 9 10 18 51 53 58 58 45 60 54 69 72 90 101 106 118 104 143 Avg Prop Armor Cover (%) 12 | . . 9 11 . . . . . . 13 . 12 16 6 . . 2 . 3 10 Naked Turns . | . . . . . . . . . . . . . . . . . . . . . Heaviest Build 59 | 15 50 53 55 52 25 21 21 21 22 23 35 19 13 21 33 31 38 43 59 59 Greatest Support 210 | 40 40 40 30 22 27 27 28 28 28 23 33 16 17 44 43 43 37 44 67 210 Greatest Overweight (x) 5 | . 1 5 5 4 . . . . . . 1 1 1 . . . 1 . . 1 Average Overweight (x) . | . . 3 4 3 . . . . . . . . . . . . . . . . Largest Inventory Capacity 20 | 8 20 20 20 20 20 10 10 10 10 10 10 5 5 5 5 5 5 5 10 10 Average Capacity 13 | 6 17 20 20 20 10 10 10 10 10 10 8 5 5 5 5 5 5 5 9 9 Most Carried 20 | 4 15 20 20 20 20 10 10 10 10 10 10 5 5 5 5 4 5 4 10 10 Average Carried 11 | 2 10 17 18 19 9 10 9 10 9 9 8 4 4 4 5 4 4 3 7 6 Final Capacity 20 | 8 20 20 20 20 10 10 10 10 10 10 5 5 5 5 5 5 5 5 10 5 Final Carried 20 | 4 15 20 17 20 10 10 10 10 9 10 5 5 5 5 5 4 5 4 9 3 Class Distribution -------------------- 48% | Mutant 18% | Derelict-Scout 12% | Scavenger-Sprinter 5% | Scavenger-Ninja 4% | Derelict-Ninja 4% | Scavenger-Mutant 4% | Hacker-Ninja Dominant Class ---------------- Mutant | -10/Materials Mutant | -10/Mines Mutant | -10/Subcaves Mutant | -8/Scraptown Derelict-Scout | -6/Factory Derelict-Scout | -6/Lower Caves Derelict-Scout | -6/Lower Caves Derelict-Scout | -6/Zion Derelict-Scout | -5/Proximity Caves Derelict-Scout | -5/Factory Derelict-Scout | -4/Factory Derelict-Scout | -4/Upper Caves Derelict-Scout | -4/Upper Caves Derelict-Ninja | -4/Zhirov Derelict-Ninja | -3/Proximity Caves Derelict-Ninja | -3/Research Derelict-Ninja | -3/Testing Derelict-Ninja | -2/Research Hacker-Ninja | -2/Quarantine Scavenger-Sprinter | -2/Protoforge Resources | -11 -10 -10 -10 -8 -6 -6 -6 -6 -5 -5 -4 -4 -4 -4 -3 -3 -3 -2 -2 -2 ----------- Run | Yrd Mat Min Sub Scr Fac Low Low Zio Pro Fac Fac Upp Upp Zhi Pro Res Tes Res Qua Frg Matter Collected 8053 | 270 220 216 402 80 210 . 46 . 14 60 16 206 136 . 61 . 62 . 217 5837 Remotely . | . . . . . . . . . . . . . . . . . . . . . Salvage Created 8177 | 103 328 412 260 . 451 . . . 20 . 31 49 18 . . . 62 . 217 6226 Parts 355 | 3 15 31 17 . 18 . . . . . 2 4 . . . . 4 . 11 250 Haulers Intercepted 4 | . 2 . . . 2 . . . . . . . . . . . . . . . Recyclers Shooed 1 | . 1 . . . . . . . . . . . . . . . . . . . Parts Field Recycled . | . . . . . . . . . . . . . . . . . . . . . Retrieved Matter . | . . . . . . . . . . . . . . . . . . . . . Parts Self-Destructed 11 | . . . 7 . . . . . 2 . . 2 . . . . . . . . Prevented 2 | . . . . . . . 2 . . . . . . . . . . . . . Parts Restored . | . . . . . . . . . . . . . . . . . . . . . Kills | -11 -10 -10 -10 -8 -6 -6 -6 -6 -5 -5 -4 -4 -4 -4 -3 -3 -3 -2 -2 -2 ------- Run | Yrd Mat Min Sub Scr Fac Low Low Zio Pro Fac Fac Upp Upp Zhi Pro Res Tes Res Qua Frg Combat Hostiles Destroyed 126 | . 3 13 10 . . . . . 2 . 2 4 . . . . . . . 92 Melee 4 | . . . . . . . . . 2 . . 1 . . . . . . . 1 Guns 54 | . 2 9 3 . . . . . . . . . . . . . . . . 40 Cannons 54 | . . . 3 . . . . . . . . . . . . . . . . 51 AOE 13 | . 1 4 3 . . . . . . . 2 3 . . . . . . . . Classes Destroyed 22 | 2 4 3 1 . . . . . 1 . . . . . . . . . 1 10 Worker 2 | . . 1 . . . . . . . . . . . . . . . . 1 . Builder 1 | . . . . . . . . . . . . . . . . . . . 1 . Tunneler 2 | 1 . 1 . . . . . . . . . . . . . . . . . . Hauler 5 | . 2 . . . 2 . . . . . . . . . . . . . . 1 Recycler 3 | 1 . . . . 1 . . . . . . . . . . . . . 1 . Operator 2 | . 1 . . . . . . . . . . . . . . . . . . 1 Drone 4 | . . . . . . . . . 2 . . . . . . . . . . 2 Watcher 11 | . 3 . . . 3 . . . . . . . . . . . . . 1 4 Swarmer 26 | . . 6 3 . . . . . . . 2 4 . . . . . . . 11 Grunt 18 | . 3 6 . . . . . . . . . . . . . . . . . 9 Brawler 5 | . . . . . . . . . . . . . . . . . . . . 5 Duelist 2 | . . . . . . . . . . . . . . . . . . . . 2 Protector 8 | . . . . . . . . . . . . . . . . . . . . 8 Hunter 6 | . . . . . . . . . . . . . . . . . . . . 6 Programmer 17 | . . . . . . . . . . . . . . . . . . . . 17 Behemoth 1 | . . . . . . . . . . . . . . . . . . . . 1 Hotshot 4 | . . . . . . . . . . . . . . . . . . . . 4 Immortal 3 | . . . . . . . . . . . . . . . . . . . . 3 Striker 13 | . . . . . . . . . . . . . . . . . . . . 13 Executioner 11 | . . . . . . . . . . . . . . . . . . . . 11 Subdweller 7 | . . . 7 . . . . . . . . . . . . . . . . . Elite 2 | . . . . . . . . . . . . . . . . . . . . 2 Scrapoid 2 | . . . . . . . . . . . . . . . . . . . . 2 Assembled 1 | . . 1 . . . . . . . . . . . . . . . . . . Best Kill Streak 7 | 2 2 3 3 . 3 . . . 2 . 2 4 . . . . . . 2 7 Combat Bots Only 7 | . 2 3 3 . . . . . 2 . 2 4 . . . . . . . 7 Max Kills in Single Turn 3 | 1 1 3 2 . 1 . . . 1 . 2 3 . . . . . . 1 2 Gunslinging 1 | . . 1 . . . . . . . . . . . . . . . . . 1 Exploded 3 | . 1 3 2 . . . . . . . 2 3 . . . . . . . . Melee 1 | . . . . . . . . . 1 . . 1 . . . . . . . 1 Uniques/NPCs Destroyed . | . . . . . . . . . . . . . . . . . . . . . Combat | -11 -10 -10 -10 -8 -6 -6 -6 -6 -5 -5 -4 -4 -4 -4 -3 -3 -3 -2 -2 -2 -------- Run | Yrd Mat Min Sub Scr Fac Low Low Zio Pro Fac Fac Upp Upp Zhi Pro Res Tes Res Qua Frg Hostile Shots Fired 897 | . 13 46 60 . 64 . 3 . 16 14 41 11 . . 21 6 20 19 2 561 Missed 468 | . 2 17 22 . 42 . 1 . 8 9 23 5 . . 16 3 10 11 2 297 Hits 429 | . 11 29 38 . 22 . 2 . 8 5 18 6 . . 5 3 10 8 . 264 Melee 41 | . . 1 . . . . . . 1 . . . . . . 2 . . . 37 Projectile 388 | . 11 28 38 . 22 . 2 . 7 5 18 6 . . 5 1 10 8 . 227 AOE 6 | . . . . . . . . . . . . . . . . 1 . 1 . 4 Critical Strikes 41 | . . . . . . . . . 1 1 . . . . . 1 . . . 38 Actively Blocked 7 | . . . . . . . . . . . . . . . . . . . . 7 Damage Taken 12095 | 32 182 373 748 . 163 . 32 . 165 93 329 94 . . 105 107 204 220 . 9248 Core 1863 | 16 57 33 138 . 27 . . . . 36 30 . . . 23 . 34 61 . 1408 Absorbed by Shields . | . . . . . . . . . . . . . . . . . . . . . Redirected to Shielding 909 | . . . . . . . . . . . . . . . . . 38 28 . 843 Regen/Repaired (Parts) 28 | . . . . . . . . . . . . . . . . . . . 28 . Core Remaining (%) 79 | 93 . . . 2 . . . . 96 96 . . . . 95 . 97 . . . Volleys Fired 487 | 3 24 30 44 . . . . . . . 2 4 . . . 1 4 1 . 374 Largest 2 | 2 2 2 2 . . . . . . . 1 1 . . . 1 1 1 . 2 Hottest 125 | 60 60 60 125 . . . . . . . 36 36 . . . 105 105 105 . 116 Shots Fired 859 | 6 49 56 77 . . . . . . . 2 4 . . . 1 5 1 . 658 Gun 438 | 6 49 55 23 . . . . . . . . . . . . . . . . 305 Cannon 410 | . . . 52 . . . . . . . . . . . . 1 5 1 . 351 Launcher 11 | . . 1 2 . . . . . . . 2 4 . . . . . . . 2 Special . | . . . . . . . . . . . . . . . . . . . . . Kinetic 725 | 3 24 27 29 . . . . . . . . . . . . . . . . 642 Thermal 63 | . . . 42 . . . . . . . . . . . . 1 5 1 . 14 Explosive 11 | . . 1 2 . . . . . . . 2 4 . . . . . . . 2 Electromagnetic 60 | 3 25 28 4 . . . . . . . . . . . . . . . . . Robot Hit Streak 37 | 6 16 8 19 . . . . . . . . . . . . . . . . 37 Robot Miss Streak 5 | . 2 3 2 . . . . . . . . 1 . . . . . . . 5 Penetration Max 2 | . . . . . . . . . . . . . . . . . . . . 2 Secondary Targets 8 | . . 1 . . . . . . . . . . . . . . . . . 7 Max Gunslinging Chain 1 | . . 1 . . . . . . . . . . . . . . . . . 1 Shots Hit Robots 650 | 6 36 34 50 . 6 . . . 5 . 2 1 1 . . . 4 . 6 499 Core Hits 354 | 3 11 23 17 . 4 . . . 2 . 4 5 . . . . . . 4 281 Critical Kills 15 | . . . 1 . . . . . . . . . . . . . . . . 14 Critical Parts Destroyed 10 | . . . . . . . . . . . . . . . . . . . . 10 Critical Strikes 68 | . . . 3 . . . . . . . . . . . . . . . . 65 Burn 1 | . . . 1 . . . . . . . . . . . . . . . . . Meltdown 1 | . . . 1 . . . . . . . . . . . . . . . . . Destroy 26 | . . . . . . . . . . . . . . . . . . . . 26 Blast 39 | . . . . . . . . . . . . . . . . . . . . 39 Corrupt 1 | . . . 1 . . . . . . . . . . . . . . . . . Melee Attacks 225 | . . 13 33 . 58 . 2 . 7 10 29 1 2 . 1 2 14 5 10 38 Impact 68 | . . . 12 . 3 . . . . 10 29 1 2 . 1 2 8 . . . Slashing 157 | . . 13 21 . 55 . 2 . 7 . . . . . . . 6 5 10 38 Piercing . | . . . . . . . . . . . . . . . . . . . . . Sneak Attacks 15 | . . . 1 . 3 . . . 2 . . . . . . . . . 5 4 Combat Hostiles 2 | . . . . . . . . . 2 . . . . . . . . . . . Follow-up Attacks . | . . . . . . . . . . . . . . . . . . . . . Damage Inflicted 24647 | 128 668 639 1097 . 557 . . . 391 . 307 192 98 . . . 403 . 540 19627 Guns 9126 | 62 533 459 288 . . . . . . . . . . . . . . . . 7784 Cannons 11927 | . . . 588 . . . . . . . . . . . . . . . . 11339 Explosions 957 | 66 135 180 221 . . . . . . . 212 143 . . . . . . . . Melee 2618 | . . . . . 557 . . . 391 . 95 49 98 . . . 403 . 540 485 Ramming 19 | . . . . . . . . . . . . . . . . . . . . 19 Kinetic 19874 | 23 235 235 380 . . . . . . . . . . . . . . . . 19001 Thermal 826 | 66 135 50 453 . . . . . . . . . . . . . . . . 122 Explosive 706 | . . 130 221 . . . . . . . 212 143 . . . . . . . . Electromagnetic 604 | 39 298 224 43 . . . . . . . . . . . . . . . . . Impact 645 | . . . . . . . . . . . 95 49 98 . . . 403 . . . Slashing 1973 | . . . . . 557 . . . 391 . . . . . . . . . 540 485 Piercing . | . . . . . . . . . . . . . . . . . . . . . Highest Corruption 18 | . 2 2 2 2 1 1 1 1 1 . . . . . . . 13 . . 18 Average Corruption 5 | . 2 2 2 2 1 1 1 1 1 . . . . . . . 10 . . 11 Corruption Purged . | . . . . . . . . . . . . . . . . . . . . . Corruption Blocked . | . . . . . . . . . . . . . . . . . . . . . Effects 243 | . 12 13 40 . 3 1 2 . 1 . . . . . . . 10 . . 161 Message Errors 50 | . 1 5 15 . 1 . 1 . . . . . . . . . 1 . . 26 Matter Fused 47 | . 3 5 7 . . . . . . . . . . . . . 2 . . 30 Heat Flow Errors 29 | . 1 2 6 . . 1 1 . . . . . . . . . . . . 18 Energy Discharges 25 | . . . 4 . 2 . . . . . . . . . . . 2 . . 17 Parts Rejected 4 | . . . . . . . . . . . . . . . . . 1 . . 3 Data Loss (minor) 29 | . 5 . 4 . . . . . 1 . . . . . . . 1 . . 18 Data Loss (major) 12 | . . . 1 . . . . . . . . . . . . . . . . 11 Misfires 4 | . 1 . 2 . . . . . . . . . . . . . 1 . . . Alerts 5 | . 1 . . . . . . . . . . . . . . . . . . 4 Misdirections 24 | . . . . . . . . . . . . . . . . . 2 . . 22 Weapon Failures 14 | . . 1 1 . . . . . . . . . . . . . . . . 12 Overload Shots . | . . . . . . . . . . . . . . . . . . . . . Overflow Damage 663 | . . . . . 56 . . . 39 . . 25 56 . . . 30 . 114 343 Projectiles 204 | . . . . . . . . . . . . . . . . . . . . 204 Explosions 25 | . . . . . . . . . . . . 25 . . . . . . . . Melee 434 | . . . . . 56 . . . 39 . . . 56 . . . 30 . 114 139 Knockbacks 37 | . . . 4 . . . . . . . . . . . . . 3 . . 30 Impact 3 | . . . . . . . . . . . . . . . . . 3 . . . Kinetic 30 | . . . 4 . . . . . . . . . . . . . . . . 26 Secondary 4 | . . . . . . . . . . . . . . . . . . . . 4 Self-Inflicted Damage 83 | 32 51 . . . . . . . . . . . . . . . . . . . Shots 2 | 1 1 . . . . . . . . . . . . . . . . . . . Rammed . | . . . . . . . . . . . . . . . . . . . . . Targets Rammed 1 | . . . . . . . . . . . . . . . . . . . . 1 Kicked 1 | . . . . . . . . . . . . . . . . . . . . 1 Crushed . | . . . . . . . . . . . . . . . . . . . . . Highest Temperature 222 | 12 211 179 222 . 9 100 101 . 21 17 9 . . . 209 24 54 36 210 188 Average Temperature 49 | 12 51 42 52 . 3 86 75 . 15 17 4 . . . 103 18 18 24 84 75 Received Heat Transfer 822 | . 72 165 147 . 48 . . . 36 63 30 . . . . . . . . 261 Siege Activations . | . . . . . . . . . . . . . . . . . . . . . Martial Activations . | . . . . . . . . . . . . . . . . . . . . . Shielding Activations . | . . . . . . . . . . . . . . . . . . . . . Robots Disrupted . | . . . . . . . . . . . . . . . . . . . . . Combat Hostiles . | . . . . . . . . . . . . . . . . . . . . . Robots Corrupted 1 | . . . . . . . . . . . . . . . . . 1 . . . Combat Hostiles 1 | . . . . . . . . . . . . . . . . . 1 . . . Parts Fried 2 | . 1 . . . . . . . . . . . . . . . 1 . . . Impact Corruptions 5 | . . . . . . . . . . . . . 4 . . . 1 . . . Robots Melted 1 | . . . 1 . . . . . . . . . . . . . . . . . Combat Hostiles 1 | . . . 1 . . . . . . . . . . . . . . . . . Parts Melted 5 | . . . 4 . . . . . . . . . . . . . . . . 1 Heat Transferred 1521 | 100 100 100 1073 . . . . . . . . . . . . . . . . 148 Parts Sabotaged . | . . . . . . . . . . . . . . . . . . . . . Parts Stolen . | . . . . . . . . . . . . . . . . . . . . . Parts Stripped . | . . . . . . . . . . . . . . . . . . . . . Power Chain Reactions 4 | 2 1 1 . . . . . . . . . . . . . . . . . . Alert | -11 -10 -10 -10 -8 -6 -6 -6 -6 -5 -5 -4 -4 -4 -4 -3 -3 -3 -2 -2 -2 ------- Run | Yrd Mat Min Sub Scr Fac Low Low Zio Pro Fac Fac Upp Upp Zhi Pro Res Tes Res Qua Frg Maximum Alert Level 5 | . . . . . . . . . . . 1 . . . . . . . . 5 Low Security (%) 59 | 100 100 100 . . 100 . . . . 100 70 . . . . 100 100 100 100 10 Level 1 10 | . . . . . . . . . . . 29 . . . . . . . . 20 Level 2 2 | . . . . . . . . . . . . . . . . . . . . 6 Level 3 4 | . . . . . . . . . . . . . . . . . . . . 11 Level 4 4 | . . . . . . . . . . . . . . . . . . . . 9 Level 5 17 | . . . . . . . . . . . . . . . . . . . . 40 High Security . | . . . . . . . . . . . . . . . . . . . . . Max Security . | . . . . . . . . . . . . . . . . . . . . . Peak Influence 3373 | 10 47 115 . . 90 . . . . 189 229 . . . . 149 104 190 146 3373 Initial 150 | . . . . . . . . . . 150 73 . . . . 108 72 25 105 65 Average 641 | 1 6 34 . . 26 . . . . 158 177 . . . . 131 69 58 118 1398 Influence Increases 7296 | 10 170 480 135 . 333 . 90 . 122 281 396 90 5 . 210 51 104 228 161 4430 Destroy 0b10 Robot/C 2240 | . 60 340 60 . . . . . 20 . 40 80 . . . . . . . 1640 Destroy 0b10 Robot/NC 195 | 10 30 10 . . 30 . . . 10 . . . 5 . . . 5 . 20 75 Destroy Leader 360 | . 20 70 . . 10 . . . 10 . 10 10 . . . . . . 2 228 Allied During Kill 55 | . . 48 . . . . . . 7 . . . . . . . . . . . Successful Hack 188 | . 42 . . . 48 . . . . 10 . . . . . . . . 58 30 Disable Machine 285 | . 15 . . . 15 . . . . 15 45 . . . . . 45 . 15 135 Destroy Structure 373 | . 3 12 . . 50 . . . . 16 76 . . . . 6 24 18 6 162 Advance Influence 150 | . . . . . . . . . . 150 . . . . . . . . . . Partial Spotted 465 | . . . . . 60 . . . . . 105 . . . . 30 15 15 . 240 Lose Combat Pursuer 2985 | . . . 75 . 120 . 90 . 75 90 120 . . . 210 15 15 195 60 1920 Influence Decreases 4024 | 10 170 399 84 132 251 82 60 30 122 130 382 255 5 . 50 82 187 85 234 1274 Entered New Map 641 | . . . 43 132 . 31 . 30 . . 78 62 . . . 52 57 21 84 51 Time Decay 2644 | 10 170 359 23 . 225 51 60 . 57 130 254 153 5 . 50 30 120 54 150 743 Lost Part 605 | . . 20 . . . . . . 15 . 50 30 . . . . 10 10 . 470 Lost Ally 118 | . . 20 18 . 10 . . . 50 . . 10 . . . . . . . 10 Purge Threat 16 | . . . . . 16 . . . . . . . . . . . . . . . Squads Dispatched 32 | . . . . . 7 . . . 1 6 7 . . . . 2 2 2 1 4 Investigation 21 | . . . . . 6 . . . . 5 6 . . . . 1 1 . . 2 Extermination 6 | . . . . . 1 . . . . . 1 . . . . . 1 1 1 1 Reinforcement 4 | . . . . . . . . . . 1 . . . . . 1 . 1 . 1 Assault 1 | . . . . . . . . . 1 . . . . . . . . . . . Garrison . | . . . . . . . . . . . . . . . . . . . . . Intercept . | . . . . . . . . . . . . . . . . . . . . . Searches Triggered . | . . . . . . . . . . . . . . . . . . . . . Construction Impeded . | . . . . . . . . . . . . . . . . . . . . . Haulers Reinforced . | . . . . . . . . . . . . . . . . . . . . . Active Scanning Responses . | . . . . . . . . . . . . . . . . . . . . . Cargo Convoy Interrupts . | . . . . . . . . . . . . . . . . . . . . . Stealth | -11 -10 -10 -10 -8 -6 -6 -6 -6 -5 -5 -4 -4 -4 -4 -3 -3 -3 -2 -2 -2 --------- Run | Yrd Mat Min Sub Scr Fac Low Low Zio Pro Fac Fac Upp Upp Zhi Pro Res Tes Res Qua Frg Distress Signals 31 | . . . . . . . . . . 1 3 . . . . 3 1 . . 23 Communications Jammed 28 | . . . . . . . . . . . . . . . . . . 7 1 20 Distress Signals 28 | . . . . . . . . . . . . . . . . . . 7 1 20 Times Spotted 734 | . 8 19 15 . 14 . 3 . 17 16 20 5 . . 12 9 6 19 6 565 Peak Tracking Total 26 | . 2 3 5 . 6 . 5 . 15 7 5 4 . . 10 14 6 13 4 26 Tactical Retreats 89 | . . . 1 . 5 . 3 . 3 2 6 . . . 4 1 1 1 2 60 ECM-based Alert Blocks 25 | . . . . . . . . . . . 1 . . . . . . . . 24 Traps | -11 -10 -10 -10 -8 -6 -6 -6 -6 -5 -5 -4 -4 -4 -4 -3 -3 -3 -2 -2 -2 ------- Run | Yrd Mat Min Sub Scr Fac Low Low Zio Pro Fac Fac Upp Upp Zhi Pro Res Tes Res Qua Frg Traps Triggered 11 | . 2 . 1 . 3 . . . . . 1 . . . . . 1 . 1 2 Indirectly . | . . . . . . . . . . . . . . . . . . . . . Trap Hack Attempts . | . . . . . . . . . . . . . . . . . . . . . Triggered . | . . . . . . . . . . . . . . . . . . . . . Disarmed . | . . . . . . . . . . . . . . . . . . . . . Reprogrammed . | . . . . . . . . . . . . . . . . . . . . . Reused . | . . . . . . . . . . . . . . . . . . . . . Traps Extracted . | . . . . . . . . . . . . . . . . . . . . . Installed . | . . . . . . . . . . . . . . . . . . . . . Triggered . | . . . . . . . . . . . . . . . . . . . . . Most Traps Carried 3 | . . 3 3 . . . . . . . . . . . . . . . . . Machines | -11 -10 -10 -10 -8 -6 -6 -6 -6 -5 -5 -4 -4 -4 -4 -3 -3 -3 -2 -2 -2 ---------- Run | Yrd Mat Min Sub Scr Fac Low Low Zio Pro Fac Fac Upp Upp Zhi Pro Res Tes Res Qua Frg Machines Disabled 20 | . 1 . . . 1 . . . . 1 3 . . . . . 4 . 1 9 Max in Single Turn 3 | . 1 . . . 1 . . . . 1 1 . . . . . 1 . 1 3 Garrison Access 3 | . . . . . 1 . . . . . 2 . . . . . . . . . Machines Repaired . | . . . . . . . . . . . . . . . . . . . . . Machines Dismantled . | . . . . . . . . . . . . . . . . . . . . . Machines Sabotaged . | . . . . . . . . . . . . . . . . . . . . . Overloaded Fab Kills . | . . . . . . . . . . . . . . . . . . . . . Hacking | -11 -10 -10 -10 -8 -6 -6 -6 -6 -5 -5 -4 -4 -4 -4 -3 -3 -3 -2 -2 -2 --------- Run | Yrd Mat Min Sub Scr Fac Low Low Zio Pro Fac Fac Upp Upp Zhi Pro Res Tes Res Qua Frg Machines Accessed 80 | . 6 . . 1 20 . 1 . . 6 16 1 1 4 . 1 3 3 6 11 Terminals 40 | . 5 . . . 12 . . . . 1 6 . . . . . 1 3 4 8 Fabricators 4 | . . . . . . . . . . 1 1 . . . . . 1 . . 1 Repair Stations 1 | . . . . . . . . . . . . . . . . . . . 1 . Recycling Units 17 | . 1 . . . 4 . . . . 4 6 . . . . 1 . . . 1 Scanalyzers 4 | . . . . . 1 . . . . . 1 . . . . . 1 . 1 . Garrison Access 6 | . . . . . 3 . . . . . 2 . . . . . . . . 1 Total Hacks 180 | . 18 . . 4 44 . 1 . . 9 29 1 1 17 . 1 5 11 12 27 Successful 91 | . 12 . . 4 16 . 1 . . 5 11 1 1 17 . 1 3 4 8 7 Failed 88 | . 6 . . . 28 . . . . 4 18 . . . . . 1 7 4 20 Catastrophic 8 | . . . . . 2 . . . . 1 2 . . . . . . . . 3 Database Lockouts 1 | . . . . . . . . . . . . . . . . . 1 . . . Manual 82 | . 12 . . . 20 . . . . 6 17 . . . . 1 . 5 2 19 Terminals 93 | . 15 . . . 26 . . . . 3 11 . . . . . 1 11 8 18 Fabricators 6 | . . . . . . . . . . 1 1 . . . . . 1 . . 3 Repair Stations 2 | . . . . . . . . . . . . . . . . . . . 2 . Recycling Units 31 | . 3 . . . 9 . . . . 5 10 . . . . 1 . . . 3 Scanalyzers 9 | . . . . . 2 . . . . . 2 . . . . . 3 . 2 . Garrison Access 15 | . . . . . 7 . . . . . 5 . . . . . . . . 3 Terminal Hacks 47 | . 5 . . 4 7 . 1 . . 1 1 1 1 17 . . 1 2 5 1 Record 10 | . . . . 4 . . . . . . . . . 5 . . . . 1 . Part Schematic 4 | . . . . . . . . . . . . . . 4 . . . . . . Robot Analysis 6 | . 2 . . . . . . . . . . . . 4 . . . . . . Prototype ID Bank 4 | . . . . . . . . . . . . . . 4 . . . . . . Open Door 3 | . . . . . . . 1 . . . . 1 1 . . . . . . . Emergency Access Points 1 | . 1 . . . . . . . . . . . . . . . . . . . Terminal Index 1 | . . . . . . . . . . . . . . . . . . 1 . . Unreport Threat 1 | . . . . . 1 . . . . . . . . . . . . . . . Locate Traps 4 | . 1 . . . 2 . . . . . . . . . . . . . 1 . Recall Investigation 2 | . . . . . 1 . . . . . 1 . . . . . . . . . Recall Extermination 1 | . . . . . 1 . . . . . . . . . . . . . . . Hauler Manifests 1 | . . . . . . . . . . 1 . . . . . . . . . . Zone Layout 9 | . 1 . . . 2 . . . . . . . . . . . 1 1 3 1 Fabricator Hacks 2 | . . . . . . . . . . . 1 . . . . . . . . 1 Network Status 1 | . . . . . . . . . . . 1 . . . . . . . . . Load Schematic 1 | . . . . . . . . . . . . . . . . . . . . 1 Repair Station Hacks 2 | . . . . . . . . . . . . . . . . . . . 2 . Scan Component 1 | . . . . . . . . . . . . . . . . . . . 1 . Repair 1 | . . . . . . . . . . . . . . . . . . . 1 . Recycling Unit Hacks 1 | . 1 . . . . . . . . . . . . . . . . . . . Retrieve Components 1 | . 1 . . . . . . . . . . . . . . . . . . . Scanalyzer 6 | . . . . . 2 . . . . . 1 . . . . . 2 . 1 . Insert Component 1 | . . . . . . . . . . . . . . . . . 1 . . . Retrieve Study 5 | . . . . . 2 . . . . . 1 . . . . . 1 . 1 . Garrison Access Hacks 3 | . . . . . 1 . . . . . 2 . . . . . . . . . Seal Access 3 | . . . . . 1 . . . . . 2 . . . . . . . . . Unauthorized Hacks 30 | . 6 . . . 6 . . . . 4 6 . . . . 1 . 2 . 5 Terminals 15 | . 6 . . . 3 . . . . . . . . . . . . 2 . 4 Track 2 | . . . . . . . . . . . . . . . . . . . . 2 Assimilate 2 | . . . . . 1 . . . . . . . . . . . . . . 1 Botnet 6 | . 1 . . . 2 . . . . . . . . . . . . 2 . 1 Skim 5 | . 5 . . . . . . . . . . . . . . . . . . . Fabricators . | . . . . . . . . . . . . . . . . . . . . . Repair Stations . | . . . . . . . . . . . . . . . . . . . . . Recycling Units 15 | . . . . . 3 . . . . 4 6 . . . . 1 . . . 1 Fedlink 15 | . . . . . 3 . . . . 4 6 . . . . 1 . . . 1 Scanalyzers . | . . . . . . . . . . . . . . . . . . . . . Garrison Access . | . . . . . . . . . . . . . . . . . . . . . Data Cores Recovered 1 | . 1 . . . . . . . . . . . . . . . . . . . Used 1 | . 1 . . . . . . . . . . . . . . . . . . . Hacking Detections 52 | . 4 . . . 18 . . . . 2 9 . . . . . 1 3 5 10 Full Trace Events 4 | . . . . . 3 . . . . . . . . . . . . . . 1 Feedback Events . | . . . . . . . . . . . . . . . . . . . . . Feedback Blocked . | . . . . . . . . . . . . . . . . . . . . . Robot Schematics Acquired . | . . . . . . . . . . . . . . . . . . . . . Robots Built . | . . . . . . . . . . . . . . . . . . . . . Authchips . | . . . . . . . . . . . . . . . . . . . . . Time . | . . . . . . . . . . . . . . . . . . . . . Total Robot Build Rating . | . . . . . . . . . . . . . . . . . . . . . Part Schematics Acquired 4 | . . . . . . . . . . . . . . 4 . . . . . . Parts Built . | . . . . . . . . . . . . . . . . . . . . . Authchips . | . . . . . . . . . . . . . . . . . . . . . Time . | . . . . . . . . . . . . . . . . . . . . . Total Part Build Rating . | . . . . . . . . . . . . . . . . . . . . . Part Studies Acquired 5 | . . . . . 2 . . . . . 1 . . . . . 1 . 1 . Parts Repaired 1 | . . . . . . . . . . . . . . . . . . . 1 . Time 28 | . . . . . . . . . . . . . . . . . . . 28 . Parts Recycled . | . . . . . . . . . . . . . . . . . . . . . Recycled Matter . | . . . . . . . . . . . . . . . . . . . . . Retrieved Matter . | . . . . . . . . . . . . . . . . . . . . . Retrieved Components 3 | . 3 . . . . . . . . . . . . . . . . . . . Parts Scanalyzed . | . . . . . . . . . . . . . . . . . . . . . Part Schematics Acquired . | . . . . . . . . . . . . . . . . . . . . . Parts Damaged . | . . . . . . . . . . . . . . . . . . . . . Bothacking | -11 -10 -10 -10 -8 -6 -6 -6 -6 -5 -5 -4 -4 -4 -4 -3 -3 -3 -2 -2 -2 ------------ Run | Yrd Mat Min Sub Scr Fac Low Low Zio Pro Fac Fac Upp Upp Zhi Pro Res Tes Res Qua Frg Used RIF Installer . | . . . . . . . . . . . . . . . . . . . . . Robots Hacked . | . . . . . . . . . . . . . . . . . . . . . Non-combat . | . . . . . . . . . . . . . . . . . . . . . Combat . | . . . . . . . . . . . . . . . . . . . . . Robot Hacks Applied . | . . . . . . . . . . . . . . . . . . . . . Relay Couplers Released . | . . . . . . . . . . . . . . . . . . . . . Fabnet Peak Effective % . | . . . . . . . . . . . . . . . . . . . . . Robots Rewired . | . . . . . . . . . . . . . . . . . . . . . Allies Hacked . | . . . . . . . . . . . . . . . . . . . . . Hacks Repelled . | . . . . . . . . . . . . . . . . . . . . . Allies | -11 -10 -10 -10 -8 -6 -6 -6 -6 -5 -5 -4 -4 -4 -4 -3 -3 -3 -2 -2 -2 -------- Run | Yrd Mat Min Sub Scr Fac Low Low Zio Pro Fac Fac Upp Upp Zhi Pro Res Tes Res Qua Frg Total Allies 9 | . . 3 . . 1 . . 4 . . . . . . . . . . . 1 Largest Group 4 | . . 3 2 . 1 . . 4 4 . . . . . . . . . . 1 Highest-Rated Group 107 | . . 40 32 . 26 . . 107 107 . . . . . . . . . . 26 Highest-Rated Ally 31 | . . 16 16 . 26 . . 31 31 . . . . . . . . . . 26 Initial UFD Resources 101 | . . . . . 23 39 39 39 41 41 61 83 83 83 87 87 97 101 101 101 Total Orders 4 | . . . . . . . . . . . . 2 2 . . . . . . . EXPLORE 3 | . . . . . . . . . . . . 2 1 . . . . . . . RETURN 1 | . . . . . . . . . . . . . 1 . . . . . . . Ally Attacks 59 | . . 25 13 . . . . . 21 . . . . . . . . . . . Total Damage 784 | . . 323 170 . . . . . 291 . . . . . . . . . . . Kills 9 | . . 6 2 . . . . . 1 . . . . . . . . . . . Allies Corrupted . | . . . . . . . . . . . . . . . . . . . . . Allies Melted 4 | . . . . . . . . . . . . . . . . . . . . 4 Intel | -11 -10 -10 -10 -8 -6 -6 -6 -6 -5 -5 -4 -4 -4 -4 -3 -3 -3 -2 -2 -2 ------- Run | Yrd Mat Min Sub Scr Fac Low Low Zio Pro Fac Fac Upp Upp Zhi Pro Res Tes Res Qua Frg Active Infowar (turns) 13911 | 64 1287 30 2797 1717 747 176 195 334 162 265 546 339 632 84 134 64 241 129 319 3649 Optics 6851 | . . . . . 450 . . . . 264 546 339 632 84 134 64 241 129 319 3649 Sensors 5824 | . . . . . 710 176 193 334 128 265 475 338 632 77 134 64 241 129 319 1609 Seismic 5932 | 64 1287 30 2797 1717 37 . . . . . . . . . . . . . . . Decoding 4072 | . . . . . 739 176 195 334 162 265 546 339 632 84 134 64 241 129 32 . Machine Analysis 3986 | . . . . . 729 176 195 334 162 265 546 339 632 84 134 64 241 85 . . Cloaking 223 | . . . . . . . . . . . . . 2 . . 1 137 83 . . Jamming 1442 | . . . . . . . . . . . . . 1 . . . . 127 308 1006 ECM 118 | . . . . . . . . . . . 11 . . . . . . . 2 105 Robot Analysis Total 6 | . 2 . . . . . . . . . . . . 4 . . . . . . Derelict Logs Recovered 14 | . . 1 1 4 . 1 1 2 1 . . 1 2 . . . . . . . Drone Launches 3 | . . . . . . . . . . . . 2 1 . . . . . . . Drone Recoveries 2 | . . . . . . . . . . . . 1 1 . . . . . . . Decoded 0b10 Intel 53 | . . . . . 20 . . . . 9 15 . . . . 3 2 4 . . Garrisons 5 | . . . . . 2 . . . . . 1 . . . . . . 2 . . Patrols 18 | . . . . . 2 . . . . 4 7 . . . . 2 2 1 . . Investigations 10 | . . . . . 5 . . . . 3 1 . . . . 1 . . . . Guards 20 | . . . . . 11 . . . . 2 6 . . . . . . 1 . . Exploration | -11 -10 -10 -10 -8 -6 -6 -6 -6 -5 -5 -4 -4 -4 -4 -3 -3 -3 -2 -2 -2 ------------- Run | Yrd Mat Min Sub Scr Fac Low Low Zio Pro Fac Fac Upp Upp Zhi Pro Res Tes Res Qua Frg Turns Passed 15735 | 137 1297 1232 3143 1719 747 176 195 334 162 265 546 339 632 84 134 64 241 129 319 3840 Spaces Moved 21267 | 74 525 559 1880 1309 1678 646 568 695 295 580 1093 540 898 150 502 238 509 312 713 7503 Core 37 | 3 . . . . . . . . . . . . . . . . . . . 34 Treads 826 | 71 525 230 . . . . . . . . . . . . . . . . . . Legs 124 | . . . . . . . . . . . . . . . . . . . . 124 Wheels 3518 | . . 329 1880 1309 . . . . . . . . . . . . . . . . Hover 390 | . . . . . . . . . . . . 2 388 . . . . . . . Flight 16372 | . . . . . 1678 646 568 695 295 580 1093 538 510 150 502 238 509 312 713 7345 Fastest Speed 8 | 50 160 155 107 115 27 27 27 27 27 31 24 30 32 12 16 16 23 15 11 8 Average Speed 53 | 155 221 189 142 129 27 27 27 27 27 31 30 36 67 28 21 22 23 19 18 22 Slowest Speed 240 | 160 240 240 155 140 29 27 29 27 31 37 112 120 160 32 23 23 98 22 22 140 Overloaded Moves 215 | . . . . . . . . . . . . . . 1 63 9 . 16 16 110 Propulsion Burnouts . | . . . . . . . . . . . . . . . . . . . . . Robots Hopped 115 | . . . . . 5 . . . 2 4 9 . 4 . 4 1 10 8 2 66 Potential Cave-ins 53 | . . . . . . . . . . . . . . . . . . . . 53 Cave-ins Triggered 1 | . . . . . . . . . . . . . . . . . . . . 1 Exploration Rate (%) 57 | 3 61 85 73 90 40 80 70 82 54 21 36 69 92 62 71 10 69 11 64 69 Regions Visited 20 Branch Regions 14 Pre-discovered Areas 10 | . 1 1 . 1 1 . . 2 1 . . . . 3 . . . . . . Known Exits Taken 16 | . . 1 . . 1 1 1 1 1 1 1 1 1 1 1 1 1 1 1 . Unknown Exits Taken 4 | 1 1 . 1 1 . . . . . . . . . . . . . . . . Scrap Searched 30 | . . 1 3 8 . 3 3 1 1 . . 2 3 . 5 . . . . . Spaces Dug 156 | . . 2 9 . 50 . 2 . . 8 30 . 1 . 1 3 10 6 2 32 Terrain Destroyed 270 | 7 2 12 15 . 50 . 2 . . 8 39 43 1 . 1 3 12 6 2 67 Melee 133 | . . 2 3 . 50 . 2 . . 8 23 . 1 . 1 2 7 5 2 27 Projectile 47 | . . . . . . . . . . . . . . . . 1 5 1 . 40 AOE 90 | 7 2 10 12 . . . . . . . 16 43 . . . . . . . . Terrain Rammed . | . . . . . . . . . . . . . . . . . . . . . Walls Destroyed . | . . . . . . . . . . . . . . . . . . . . . Machines Disabled . | . . . . . . . . . . . . . . . . . . . . . Actions | -11 -10 -10 -10 -8 -6 -6 -6 -6 -5 -5 -4 -4 -4 -4 -3 -3 -3 -2 -2 -2 --------- Run | Yrd Mat Min Sub Scr Fac Low Low Zio Pro Fac Fac Upp Upp Zhi Pro Res Tes Res Qua Frg Total 24265 | 87 610 651 2201 1335 1859 646 606 842 357 639 1243 673 912 190 519 241 593 362 878 8821 Wait 1660 | . 46 7 198 4 62 . 22 146 56 41 80 118 2 22 14 . 36 50 129 627 Move 21031 | 73 524 558 1879 1308 1667 645 567 694 290 571 1074 539 889 149 494 235 489 295 708 7383 Hop 100 | . . . . . 5 . . . 2 4 9 . 4 . 3 1 9 8 2 53 Pick Up 113 | 4 11 20 11 10 12 . 5 1 . 3 4 . 1 1 . . 6 . 9 15 Fast Attach 179 | 7 3 1 2 2 6 . 2 . . 2 6 5 6 9 3 1 12 . 4 108 Attach 55 | . . 2 3 2 9 . 1 . 1 4 5 2 1 . . 1 1 2 5 16 Detach 44 | . . . . . 2 . . . . 2 5 3 1 . . . 2 1 2 26 Swap 70 | . 1 7 18 1 6 1 1 . 1 1 4 . 2 1 1 . 5 . 7 13 Drop 179 | . 1 13 13 8 17 . 6 1 . 1 10 1 4 8 3 . 15 . 2 76 Fire 487 | 3 24 30 44 . . . . . . . 2 4 . . . 1 4 1 . 374 Melee 225 | . . 13 33 . 58 . 2 . 7 10 29 1 2 . 1 2 14 5 10 38 Ram . | . . . . . . . . . . . . . . . . . . . . . Kick 1 | . . . . . . . . . . . . . . . . . . . . 1 Crush . | . . . . . . . . . . . . . . . . . . . . . Escape Stasis 31 | . . . . . 15 . . . . . 15 . . . . . . . . 1 Rewire . | . . . . . . . . . . . . . . . . . . . . . Trap . | . . . . . . . . . . . . . . . . . . . . . Miscellaneous 90 | . . . . . . . . . . . . . . . . . . . . 90 Route ------- -11/Scrapyard -10/Materials (discovered 5 exits: *Mat x3 / [*Min] / Sub) -10/Mines (discovered 3 exits: *Mat x2 / *Sub) -10/Subcaves (discovered 4 exits: *Mat x2 / Rec / *Scr) -8/Scraptown (discovered 2 exits: *Fac x2) -6/Factory (discovered 4 exits: *Fac x2 / *Low / Ext) -6/Lower Caves -6/Lower Caves (discovered 2 exits: *Fac / *Zio) -6/Zion -5/Proximity Caves -5/Factory (discovered 3 exits: *Fac / *Upp x2) -4/Factory -4/Upper Caves -4/Upper Caves (discovered 2 exits: *Res / *Zhi) -4/Zhirov -3/Proximity Caves -3/Research -3/Testing -2/Research -2/Quarantine (discovered 3 exits: [*Acc] / [*Sec] / *Frg) -2/Protoforge (discovered 1 exit: [*Acc]) History --------- Turn | Location | Event 9 | -11/Scrapyard | Discovered new exit (range 16) 138 | -11/Scrapyard | Entered Materials 310 | -10/Materials | Build established: Mutant 399 | -10/Materials | Discovered new exit (range 8) 496 | -10/Materials | Discovered new exit (range 5) 1237 | -10/Materials | Loaded intel: 22 trap records 1281 | -10/Materials | Learned location of 1 exit from Recycling 1343 | -10/Materials | Identified exit to Materials 1367 | -10/Materials | Learned 2 Storage zone layouts 1375 | -10/Materials | Learned location of Mines (-9) 1423 | -10/Materials | Identified exit to Subcaves 1435 | -10/Materials | Entered Mines 1633 | -10/Mines | Assisted by bots powering up and referring to "LRC-V3" 1880 | -10/Mines | Learned location of Zion (-6) 2105 | -10/Mines | Excavation squad dispatched 2105 | -10/Mines | A large section of the Mines collapsed 2349 | -10/Mines | Found a hidden stash of uninstalled traps 2387 | -10/Mines | Discovered exit to Subcaves (range 10) 2667 | -10/Mines | Entered Subcaves 2667 | -10/Subcaves | Accompanied by 2 allies 2668 | -10/Subcaves | Approached by a straggling Scientist 2668 | -10/Subcaves | Identified exit to Materials 2689 | -10/Subcaves | Shifting Twisted Machinery released Mak. Flight Unit 2692 | -10/Subcaves | Identified exit to Recycling 2716 | -10/Subcaves | Shifting Twisted Machinery released Battle Cannon 2850 | -10/Subcaves | Disturbed a concealed Subdweller 2851 | -10/Subcaves | Core integrity fell below 50% 3639 | -10/Subcaves | Shifting Twisted Machinery released Sub. Optics 3645 | -10/Subcaves | Shifting Twisted Machinery released Mak. Light Armor Plating 3803 | -10/Subcaves | Discovered exit to Materials (range 5) 4257 | -10/Subcaves | Scientist uncovered a shortcut to Scraptown 4525 | -10/Subcaves | Shifting Twisted Machinery released Mak. Hammer 4598 | -10/Subcaves | Shifting Twisted Machinery released Battle Rifle 4808 | -10/Subcaves | Lost 3 parts (1p1n1w) 4860 | -10/Subcaves | Core integrity fell below 20% 5025 | -10/Subcaves | A swath of the cavern ceiling suddenly collapsed 5810 | -10/Subcaves | Entered Scraptown 5816 | -8/Scraptown | System corruption cleaned by C-Scrubber 6012 | -8/Scraptown | Visited CPS Storage 6033 | -8/Scraptown | Visited Comm Corps 6305 | -8/Scraptown | Scanned Subdweller tech in exchange for log data 6313 | -8/Scraptown | Learned Research emergency access door positions 6316 | -8/Scraptown | Learned location of Quarantine (-2) 6331 | -8/Scraptown | Discovered new exit (range 11) 6435 | -8/Scraptown | Visited Red Mages 6463 | -8/Scraptown | Visited Awakened 6625 | -8/Scraptown | Visited Cave Peace 6663 | -8/Scraptown | Visited IN-MT5's Study 6702 | -8/Scraptown | Visited UFD Registry 6702 | -8/Scraptown | Registered with UFD as "Metarider" 6787 | -8/Scraptown | Visited Science Guys 6842 | -8/Scraptown | Visited Junk Cannon Lab 6867 | -8/Scraptown | Visited DA-N13 Charitable Foundation 6880 | -8/Scraptown | Found DCF Scrap (29 items) 6951 | -8/Scraptown | Visited Modified Component R&D 6963 | -8/Scraptown | Visited Abandonware Association 6977 | -8/Scraptown | Learned abandonware demo "HACKBUD.EXE" 6977 | -8/Scraptown | Learned abandonware demo "REPAIR.EXE" 7020 | -8/Scraptown | Visited A0-MCA Data Center 7037 | -8/Scraptown | Visited Junk Repository 7056 | -8/Scraptown | Visited Chapter 10 7074 | -8/Scraptown | Visited Scrap Suit Storage 7422 | -8/Scraptown | Visited Infowarlord's Domain 7467 | -8/Scraptown | Met Optimus 7467 | -8/Scraptown | Accepted into 0bPrime 7525 | -8/Scraptown | Discovered new exit (range 5) 7529 | -8/Scraptown | Entered Factory 7529 | -6/Factory | Evolved 8 slots: Propulsion x3, Utility x5 7530 | -6/Factory | Identified exit to Extension 7555 | -6/Factory | Discovered new exit (range 10) 7571 | -6/Factory | Identified exit to Factory 7834 | -6/Factory | Build established: Derelict-Scout 7856 | -6/Factory | Spotted B-75 Beast 8064 | -6/Factory | Loaded intel: 8 recycling unit locations 8104 | -6/Factory | Discovered exit to Factory (range 15) 8160 | -6/Factory | Discovered new exit (range 9) 8163 | -6/Factory | Identified exit to Lower Caves 8216 | -6/Factory | Found Prototype Launcher 8251 | -6/Factory | Learned location of Protoforge (-2) 8276 | -6/Factory | Entered Lower Caves 8380 | -6/Lower Caves | Learned 8 Factory zone layouts 8436 | -6/Lower Caves | Discovered new exit (range 7) 8452 | -6/Lower Caves | Identified exit to Lower Caves 8452 | -6/Lower Caves | Entered another Lower Caves area 8455 | -6/Lower Caves | Encountered a Warlord checkpoint 8494 | -6/Lower Caves | Discovered exit to Factory (range 7) 8624 | -6/Lower Caves | Learned Factory security intel 8644 | -6/Lower Caves | Discovered new exit (range 6) 8645 | -6/Lower Caves | Identified exit to Zion 8647 | -6/Lower Caves | Spotted B-75 Beast 8647 | -6/Lower Caves | Entered Zion 8674 | -6/Zion | Discovered new exit (range 15) 8694 | -6/Zion | System corruption cleaned by Quarantine Array 8755 | -6/Zion | Gained Derelict followers 8767 | -6/Zion | Learned location of Warlord (-5) 8903 | -6/Zion | Identified exit to Proximity Caves 8981 | -6/Zion | Entered Proximity Caves 8981 | -5/Proximity Caves | Accompanied by 4 allies 8984 | -5/Proximity Caves | Spotter reported a threat 9090 | -5/Proximity Caves | P-70 Sage assimilated allied 4T-O74(c) 9123 | -5/Proximity Caves | Attracted the attention of an 0b10 outpost 9138 | -5/Proximity Caves | Attracted the attention of an 0b10 checkpoint 9139 | -5/Proximity Caves | Discovered exit to Factory (range 14) 9143 | -5/Proximity Caves | Entered Factory 9143 | -5/Factory | Evolved 2 slots: Utility x2 9144 | -5/Factory | Identified exit to Upper Caves 9168 | -5/Factory | Lost 3 parts (1p1n1w) 9186 | -5/Factory | Loaded intel: 7 recycling unit locations 9306 | -5/Factory | Noticed UFD Elites at a Recycling Unit 9307 | -5/Factory | Spotted B-75 Beast 9320 | -5/Factory | Discovered new exit (range 20) 9346 | -5/Factory | Identified exit to Factory 9350 | -5/Factory | Lost 3 allies 9408 | -5/Factory | Entered another Factory area 9408 | -4/Factory | Evolved 2 slots: Propulsion x1, Utility x1 9433 | -4/Factory | Loaded intel: 8 recycling unit locations 9794 | -4/Factory | Discovered new exit (range 5) 9796 | -4/Factory | Identified exit to Upper Caves 9803 | -4/Factory | Lost 3 parts (3n) 9954 | -4/Factory | Entered Upper Caves 10058 | -4/Upper Caves | Encountered a Warlord checkpoint 10285 | -4/Upper Caves | Discovered new exit (range 7) 10292 | -4/Upper Caves | Identified exit to Upper Caves 10293 | -4/Upper Caves | Entered another Upper Caves area 10360 | -4/Upper Caves | Learned Research machine intel 10422 | -4/Upper Caves | Discovered new exit (range 103) 10466 | -4/Upper Caves | Encountered a Warlord checkpoint 10469 | -4/Upper Caves | Discovered new exit (range 22) 10820 | -4/Upper Caves | Identified exit to Zhirov 10925 | -4/Upper Caves | Entered Zhirov 10925 | -4/Zhirov | Discovered new exit (range 3) 10931 | -4/Zhirov | Met Zhirov 10937 | -4/Zhirov | Learned location of Testing (-3) 10937 | -4/Zhirov | Learned location of Command (-1) 10942 | -4/Zhirov | Zhirov requested help retrieving the SGEMP Prototype 10947 | -4/Zhirov | Found Alien Artifact 10947 | -4/Zhirov | Identified Integrated Dissipator 10947 | -4/Zhirov | Installed Integrated Dissipator, increased core heat dissipation (+20) 11009 | -4/Zhirov | Identified exit to Proximity Caves 11009 | -4/Zhirov | Entered Proximity Caves 11067 | -3/Proximity Caves | Build established: Derelict-Ninja 11102 | -3/Proximity Caves | Spotted B-86 Titan 11128 | -3/Proximity Caves | Discovered new exit (range 15) 11134 | -3/Proximity Caves | Identified exit to Research 11143 | -3/Proximity Caves | Entered Research 11143 | -3/Research | Evolved 2 slots: Utility x2 11144 | -3/Research | Identified exit to Testing 11146 | -3/Research | Loaded intel: 114 machine locations 11148 | -3/Research | Loaded intel: 5 recycling unit locations 11188 | -3/Research | Spotted B-86 Titan 11207 | -3/Research | Entered Testing 11228 | -3/Testing | Found Prototype Device 11228 | -3/Testing | Identified Exp. Thermal Defense Suite 11260 | -3/Testing | Found Prototype Launcher 11260 | -3/Testing | Identified Tesla Bomb Launcher 11282 | -3/Testing | Found Prototype Device 11282 | -3/Testing | Identified Exp. Hardlight Generator 11293 | -3/Testing | Found Fusion Bomb Launcher 11297 | -3/Testing | Spotted Striker 11305 | -3/Testing | Found Prototype Device 11305 | -3/Testing | Identified Exp. Shield Generator 11306 | -3/Testing | System corruption reached 10% 11417 | -3/Testing | Central database locked down 11445 | -3/Testing | Discovered new exit (range 14) 11448 | -3/Testing | Identified exit to Research 11448 | -3/Testing | Entered Research 11448 | -2/Research | Evolved 2 slots: Power x1, Propulsion x1 11449 | -2/Research | Identified exit to Quarantine 11568 | -2/Research | Lost 4 parts (1n3u) 11577 | -2/Research | Entered Quarantine 11681 | -2/Quarantine | Repaired Field Propulsion Drive+ 11709 | -2/Quarantine | Discovered new exit (range 19) 11783 | -2/Quarantine | Spotted Fortress 11794 | -2/Quarantine | Discovered new exit (range 6) 11794 | -2/Quarantine | Discovered new exit (range 6) 11795 | -2/Quarantine | Identified exit to Protoforge 11841 | -2/Quarantine | Build established: Hacker-Ninja 11896 | -2/Quarantine | Entered Protoforge 11908 | -2/Protoforge | Spotted Hotshot 11908 | -2/Protoforge | Spotted Hotshot 11992 | -2/Protoforge | Spotted Hotshot 12030 | -2/Protoforge | Discovered new exit (range 14) 12048 | -2/Protoforge | Spotted Hotshot 12054 | -2/Protoforge | Spotted Hotshot 12055 | -2/Protoforge | Superfortress began startup sequence 12077 | -2/Protoforge | Spotted V508-l 12102 | -2/Protoforge | Spotted EXE-6 12102 | -2/Protoforge | Spotted EXE-6 12105 | -2/Protoforge | Spotted Decapitator 12108 | -2/Protoforge | UFD initiated attack on Protoforge (Readiness: High) 12108 | -2/Protoforge | Loaded intel: 3 recycling unit locations 12119 | -2/Protoforge | Lost 6 parts (2p1n2u1w) 12135 | -2/Protoforge | Spotted Decapitator 12150 | -2/Protoforge | Optimus greeted in Protoforge 12200 | -2/Protoforge | Forge Plexus network access discovered 12202 | -2/Protoforge | Found Exp. Core Analyzer 12204 | -2/Protoforge | Found Cep. XC Strikerail 12221 | -2/Protoforge | Spotted AP7-3 12222 | -2/Protoforge | Spotted AP7-3 12268 | -2/Protoforge | Met 7R-MNS 12307 | -2/Protoforge | Found UFD Drillbomb 12339 | -2/Protoforge | Spotted Overlord 12359 | -2/Protoforge | Installed UFD Drillbomb at designated target 12359 | -2/Protoforge | UFD reported confirmed Drillbomb installation 12406 | -2/Protoforge | Lost 12 allies 12413 | -2/Protoforge | Found UFD Drillbomb 12431 | -2/Protoforge | Installed UFD Drillbomb at designated target 12431 | -2/Protoforge | UFD reported confirmed Drillbomb installation 12436 | -2/Protoforge | Spotted Executioner 12436 | -2/Protoforge | Spotted Striker 12436 | -2/Protoforge | Found UFD Drillbomb 12437 | -2/Protoforge | Spotted Executioner 12437 | -2/Protoforge | Spotted Striker 12460 | -2/Protoforge | Installed UFD Drillbomb at designated target 12460 | -2/Protoforge | UFD reported confirmed Drillbomb installation 12491 | -2/Protoforge | Build established: Scavenger-Ninja 12515 | -2/Protoforge | Spotted Striker 12547 | -2/Protoforge | Found UFD Drillbomb 12559 | -2/Protoforge | Spotted Striker 12603 | -2/Protoforge | Spotted Executioner 12603 | -2/Protoforge | Spotted Executioner 12603 | -2/Protoforge | Spotted Striker 12603 | -2/Protoforge | Spotted Striker 12702 | -2/Protoforge | Spotted Striker 12704 | -2/Protoforge | Spotted Striker 12755 | -2/Protoforge | Spotted Executioner 12760 | -2/Protoforge | Lost 20 allies 12812 | -2/Protoforge | Installed UFD Drillbomb at designated target 12812 | -2/Protoforge | UFD reported confirmed Drillbomb installation 12818 | -2/Protoforge | Spotted Hotshot 12818 | -2/Protoforge | Spotted Hotshot 12822 | -2/Protoforge | Spotted Executioner 12822 | -2/Protoforge | Spotted Executioner 12826 | -2/Protoforge | Found UFD Drillbomb 12828 | -2/Protoforge | Spotted Striker 12957 | -2/Protoforge | Installed UFD Drillbomb at designated target 12957 | -2/Protoforge | UFD reported confirmed Drillbomb installation 12958 | -2/Protoforge | Spotted B-90 Cyclops 12968 | -2/Protoforge | Found UFD Drillbomb 12970 | -2/Protoforge | Spotted Executioner 12970 | -2/Protoforge | Spotted Executioner 13042 | -2/Protoforge | Spotted Executioner 13083 | -2/Protoforge | Spotted Hotshot 13083 | -2/Protoforge | Spotted Hotshot 13083 | -2/Protoforge | Spotted Hotshot 13091 | -2/Protoforge | Spotted Striker 13091 | -2/Protoforge | Spotted Executioner 13096 | -2/Protoforge | Spotted Striker 13098 | -2/Protoforge | Spotted Hotshot 13099 | -2/Protoforge | Spotted Hotshot 13099 | -2/Protoforge | Spotted Hotshot 13106 | -2/Protoforge | Spotted Hotshot 13149 | -2/Protoforge | Lost 6 allies 13158 | -2/Protoforge | Installed UFD Drillbomb at designated target 13158 | -2/Protoforge | UFD reported confirmed Drillbomb installation 13191 | -2/Protoforge | Spotted Executioner 13191 | -2/Protoforge | Spotted Executioner 13193 | -2/Protoforge | Found UFD Drillbomb 13231 | -2/Protoforge | Crushed by falling debris 13232 | -2/Protoforge | System corruption reached 10% 13234 | -2/Protoforge | Spotted Striker 13244 | -2/Protoforge | Spotted Striker 13244 | -2/Protoforge | Spotted Executioner 13252 | -2/Protoforge | Spotted Hotshot 13264 | -2/Protoforge | Lost 7 allies 13267 | -2/Protoforge | Installed UFD Drillbomb at designated target 13267 | -2/Protoforge | UFD reported confirmed Drillbomb installation 13272 | -2/Protoforge | Spotted Hotshot 13273 | -2/Protoforge | Spotted Hotshot 13298 | -2/Protoforge | Spotted Striker 13304 | -2/Protoforge | Found UFD Drillbomb 13339 | -2/Protoforge | Lost 4 allies 13354 | -2/Protoforge | Found Exp. Core Analyzer 13357 | -2/Protoforge | Found Exp. Core Analyzer 13363 | -2/Protoforge | Destroyed Striker 13369 | -2/Protoforge | Spotted Executioner 13370 | -2/Protoforge | Spotted Striker 13376 | -2/Protoforge | Destroyed Striker 13435 | -2/Protoforge | Found Exp. Core Analyzer 13457 | -2/Protoforge | Lost 12 allies 13472 | -2/Protoforge | Spotted Striker 13474 | -2/Protoforge | Spotted Striker 13490 | -2/Protoforge | Found UFD Drillbomb 13566 | -2/Protoforge | Found Prototype Processor 13566 | -2/Protoforge | Identified Exp. Targeting Computer 13574 | -2/Protoforge | Spotted Striker 13581 | -2/Protoforge | Spotted Striker 13592 | -2/Protoforge | Spotted Executioner 13606 | -2/Protoforge | Spotted Executioner 13613 | -2/Protoforge | Spotted Executioner 13613 | -2/Protoforge | Installed UFD Drillbomb at designated target 13613 | -2/Protoforge | UFD reported confirmed Drillbomb installation 13627 | -2/Protoforge | Found Cep. Core Shell 13631 | -2/Protoforge | Lost 13 allies 13645 | -2/Protoforge | Spotted Executioner 13699 | -2/Protoforge | Spotted Hotshot 13702 | -2/Protoforge | Spotted Executioner 13703 | -2/Protoforge | Spotted Striker 13741 | -2/Protoforge | Lost 3 parts (1p2u) 13744 | -2/Protoforge | Spotted Executioner 13745 | -2/Protoforge | Spotted Executioner 13747 | -2/Protoforge | Spotted Executioner 13747 | -2/Protoforge | Spotted Executioner 13782 | -2/Protoforge | Lost 3 parts (1n1u1w) 13800 | -2/Protoforge | Core integrity fell below 50% 13803 | -2/Protoforge | Spotted Striker 13805 | -2/Protoforge | Spotted Striker 13813 | -2/Protoforge | Destroyed Executioner 13813 | -2/Protoforge | Destroyed Striker 13816 | -2/Protoforge | Spotted Immortal 13817 | -2/Protoforge | Spotted Immortal 13818 | -2/Protoforge | Spotted Decapitator 13820 | -2/Protoforge | Spotted Decapitator 13820 | -2/Protoforge | Spotted Decapitator 13822 | -2/Protoforge | Spotted Decapitator 13836 | -2/Protoforge | Spotted Immortal 13851 | -2/Protoforge | Lost 11 allies 13861 | -2/Protoforge | Spotted Executioner 13872 | -2/Protoforge | Spotted Striker 13926 | -2/Protoforge | Spotted Striker 13941 | -2/Protoforge | Found Prototype Processor 13941 | -2/Protoforge | Identified Exp. Melee Analysis Suite 13943 | -2/Protoforge | Lost 18 allies 13943 | -2/Protoforge | Found Prototype Device 13943 | -2/Protoforge | Identified Cep. Antimissile System 13953 | -2/Protoforge | Found Exp. Core Analyzer 13958 | -2/Protoforge | P-80 Master assimilated allied 02F29-K 13958 | -2/Protoforge | Spotted 02F29-K 13972 | -2/Protoforge | Found Exp. Targeting Computer 13976 | -2/Protoforge | Spotted Immortal 13977 | -2/Protoforge | Spotted Immortal 13978 | -2/Protoforge | Spotted Immortal 13986 | -2/Protoforge | Spotted Striker 13994 | -2/Protoforge | Spotted Striker 14015 | -2/Protoforge | Destroyed Striker 14035 | -2/Protoforge | Found UFD Drillbomb 14044 | -2/Protoforge | Spotted Striker 14046 | -2/Protoforge | Spotted Executioner 14073 | -2/Protoforge | Lost 9 allies 14074 | -2/Protoforge | Found Cep. Core Shell 14090 | -2/Protoforge | Spotted Striker 14091 | -2/Protoforge | Spotted Striker 14095 | -2/Protoforge | Build established: Scavenger-Sprinter 14096 | -2/Protoforge | Spotted Striker 14096 | -2/Protoforge | Spotted Striker 14100 | -2/Protoforge | Destroyed Striker 14103 | -2/Protoforge | Destroyed Striker 14115 | -2/Protoforge | Destroyed Striker 14130 | -2/Protoforge | Spotted Hotshot 14138 | -2/Protoforge | Destroyed Hotshot 14140 | -2/Protoforge | Lost 7 allies 14157 | -2/Protoforge | Spotted Decapitator 14189 | -2/Protoforge | Spotted Striker 14191 | -2/Protoforge | Spotted Striker 14192 | -2/Protoforge | Spotted Striker 14193 | -2/Protoforge | Spotted Striker 14233 | -2/Protoforge | Lost 5 allies 14246 | -2/Protoforge | Spotted Executioner 14250 | -2/Protoforge | Spotted Executioner 14273 | -2/Protoforge | P-80 Master assimilated allied X0-FLO(E) 14300 | -2/Protoforge | Lost 9 allies 14313 | -2/Protoforge | Spotted Executioner 14314 | -2/Protoforge | Spotted Executioner 14326 | -2/Protoforge | Destroyed Executioner 14337 | -2/Protoforge | Spotted Striker 14337 | -2/Protoforge | Spotted Executioner 14343 | -2/Protoforge | Spotted Striker 14344 | -2/Protoforge | Spotted Striker 14346 | -2/Protoforge | P-80 Master assimilated allied 02FDG-D 14357 | -2/Protoforge | Spotted Executioner 14357 | -2/Protoforge | Spotted Executioner 14364 | -2/Protoforge | Destroyed Executioner 14389 | -2/Protoforge | Spotted Executioner 14390 | -2/Protoforge | Spotted Executioner 14393 | -2/Protoforge | Destroyed Executioner 14405 | -2/Protoforge | Found Exp. Core Analyzer 14411 | -2/Protoforge | Found Exp. Targeting Computer 14413 | -2/Protoforge | Spotted Executioner 14414 | -2/Protoforge | Destroyed 7 combat bots 14415 | -2/Protoforge | Spotted Executioner 14430 | -2/Protoforge | Spotted Executioner 14434 | -2/Protoforge | Destroyed Executioner 14436 | -2/Protoforge | Spotted Executioner 14463 | -2/Protoforge | Destroyed Executioner 14468 | -2/Protoforge | Found Exp. Targeting Computer 14485 | -2/Protoforge | Spotted Striker 14485 | -2/Protoforge | Spotted Striker 14493 | -2/Protoforge | Destroyed B-90 Cyclops 14496 | -2/Protoforge | Destroyed Striker 14517 | -2/Protoforge | Spotted Executioner 14544 | -2/Protoforge | Lost 3 parts (2u1w) 14547 | -2/Protoforge | Spotted Executioner 14572 | -2/Protoforge | P-80 Master assimilated allied Lugger 956 14593 | -2/Protoforge | Spotted Striker 14598 | -2/Protoforge | Spotted Striker 14603 | -2/Protoforge | Spotted Executioner 14623 | -2/Protoforge | Destroyed Striker 14632 | -2/Protoforge | Spotted Executioner 14632 | -2/Protoforge | Destroyed Executioner 14660 | -2/Protoforge | Lost 37 allies 14668 | -2/Protoforge | Spotted Hotshot 14668 | -2/Protoforge | Spotted Hotshot 14671 | -2/Protoforge | Spotted Hotshot 14675 | -2/Protoforge | Destroyed Hotshot 14683 | -2/Protoforge | Spotted Striker 14685 | -2/Protoforge | Spotted Striker 14690 | -2/Protoforge | Destroyed Hotshot 14708 | -2/Protoforge | Spotted Striker 14711 | -2/Protoforge | Spotted Striker 14760 | -2/Protoforge | Lost 6 allies 14767 | -2/Protoforge | Spotted Striker 14768 | -2/Protoforge | Spotted Striker 14770 | -2/Protoforge | Spotted Striker 14770 | -2/Protoforge | Spotted Striker 14791 | -2/Protoforge | Destroyed Striker 14797 | -2/Protoforge | Destroyed Striker 14821 | -2/Protoforge | Spotted Executioner 14825 | -2/Protoforge | Spotted Executioner 14842 | -2/Protoforge | Found Exp. Core Analyzer 14876 | -2/Protoforge | Installed UFD Drillbomb at designated target 14876 | -2/Protoforge | UFD reported confirmed Drillbomb installation 14879 | -2/Protoforge | Spotted Executioner 14880 | -2/Protoforge | Spotted Executioner 14880 | -2/Protoforge | Spotted Striker 14882 | -2/Protoforge | Spotted Executioner 14898 | -2/Protoforge | Spotted Striker 14903 | -2/Protoforge | Spotted Hotshot 14903 | -2/Protoforge | Destroyed Hotshot 14906 | -2/Protoforge | Spotted Hotshot 14907 | -2/Protoforge | Spotted Hotshot 14932 | -2/Protoforge | Found Cep. Core Shell 14935 | -2/Protoforge | Found Cep. Core Shell 14948 | -2/Protoforge | Lost 11 allies 14983 | -2/Protoforge | Spotted Striker 14984 | -2/Protoforge | Spotted Striker 14994 | -2/Protoforge | Destroyed Executioner 15014 | -2/Protoforge | P-80 Master assimilated allied 02FEN-D 15021 | -2/Protoforge | Lost 7 allies 15081 | -2/Protoforge | Lost 3 allies 15087 | -2/Protoforge | Spotted Executioner 15089 | -2/Protoforge | Spotted Executioner 15126 | -2/Protoforge | Spotted Executioner 15126 | -2/Protoforge | Spotted Executioner 15157 | -2/Protoforge | Spotted Striker 15171 | -2/Protoforge | Spotted Executioner 15181 | -2/Protoforge | Destroyed Executioner 15187 | -2/Protoforge | Found Exp. Targeting Computer 15189 | -2/Protoforge | Lost 7 allies 15191 | -2/Protoforge | Spotted Striker 15191 | -2/Protoforge | Spotted Executioner 15199 | -2/Protoforge | Spotted Executioner 15212 | -2/Protoforge | Destroyed Striker 15288 | -2/Protoforge | Lost 12 allies 15304 | -2/Protoforge | Spotted Executioner 15315 | -2/Protoforge | Spotted Executioner 15316 | -2/Protoforge | Spotted Executioner 15339 | -2/Protoforge | Spotted Striker 15346 | -2/Protoforge | Destroyed Striker 15369 | -2/Protoforge | Spotted Immortal 15371 | -2/Protoforge | Spotted Immortal 15372 | -2/Protoforge | Spotted Immortal 15386 | -2/Protoforge | Destroyed Immortal 15422 | -2/Protoforge | Lost 15 allies 15456 | -2/Protoforge | Destroyed Immortal 15465 | -2/Protoforge | Destroyed Immortal 15505 | -2/Protoforge | Spotted Executioner 15509 | -2/Protoforge | Destroyed Executioner 15524 | -2/Protoforge | Spotted Executioner 15528 | -2/Protoforge | Spotted Executioner 15534 | -2/Protoforge | Destroyed Executioner 15541 | -2/Protoforge | Spotted Decapitator 15542 | -2/Protoforge | Spotted Decapitator 15543 | -2/Protoforge | Spotted Decapitator 15543 | -2/Protoforge | Spotted Decapitator 15545 | -2/Protoforge | Spotted Decapitator 15546 | -2/Protoforge | Spotted Striker 15551 | -2/Protoforge | Core integrity fell below 20% 15583 | -2/Protoforge | Lost 9 parts (3n4u2w) 15711 | -2/Protoforge | Found Exp. Core Analyzer 15727 | -2/Protoforge | Found Exp. Core Analyzer 15730 | -2/Protoforge | Found Exp. Targeting Computer 15735 | -2/Protoforge | Spotted Executioner 15736 | -2/Protoforge | Destroyed by Executioner with Helical Railgun Last Messages --------------- 15728_ N-04 Retriever collects Ovr. Bore Cannon. 15728_ N-04 Retriever collects Mak. Propulsion Shielding. 15729_ N-04 Retriever collects Mak. Microdissipator Network. 15729_ N-04 Retriever collects Lgt. Deuterium Engine. 15730_ N-04 Retriever collects Mak. Salvage Targeting Computer. 15730_ N-04 Retriever collects Scrap Suit. 15730_ Acquired Exp. Targeting Computer. 15732_ N-04 Retriever collects KE Penetrator. 15732_ Slug penetrates Yield Oscillator. 15733_ N-04 Retriever collects Imp. Deuterium Engine. 15733_ N-04 Retriever collects Mak. Salvage Targeting Computer. 15733_ N-04 Retriever collects Ovr. Coil Gun. 15734_ System corrupted: Heat flow error (+210). 15734_ Acquired Exp. Optical Array. Map ----- +----------------------------------------------------+ | """"" *[# ## " " # % | | = " # " " ## % | | """" % %%!!!= [ # % !!! # | | [%[%%*! / ;* ! !" %%%! # | | %%%%"%%![% % % = %" %!%%% # | | %!% %% %%%% %% [=%= " & % # # | | %%* ! %=%% %;; %% %%%% % # % | | [ # ## %[= #!!!! %% %%%%%%n%%% %%%%[%%%% % | | % [ % ! # ]%! =%%%%%%%%ss% %%%%%%%%% % | | """ # = # !! %%%%%%%E%ss%%%%%%% % %% | | "" " " &/# *% %=%%%%%%%%s% %#%;%%%%%% #% | | "" !" =%##[ % % %%%%%E %=!%%! %%& != #% | | " ! !#*%% % n %=%%%%%%%= # %%!%% !&# | | !=[! " #% %%%%%%n%%%%;! ! = &%% #= | | %* "";;%%% ! # % %%%j%%%%%;* #% & #% | | &%="% %%%%% % %%%%%%%%%% # # #%% | | %%=% %%%%;%%% %%%&& %%n;;;;;;#;## ### # | | %""%%!%%%%%%!%%& # &%%%%%;;% %;% ## ##?### #[ | | %%%%%%%=%%%%%% %%%%%*%&[%!%%%%;%"" # #????###!= | | %%"[[!%%= % %%%%%%[[% !%;%% ; " " ; ########% | | %%%[!% % ; % %*% !% ;% ; " ;;;########* | | %""==! % ; % !=! n % % ;[ " ;# "#!% | | % [%*; % [%! ! % %% % ;! ;# ## % | | *=;; %%[ !%!;!;; ;;;;;%%*[;;;;#"##? ##[! | | !!!!;;; =; [= [%%[%; %;;;;=![ =;#;##### "#! | | [! "; %%= %!=%!%%% %[ @ *!/ ! ; ## | | **""; = % %[*% !% % + ## | | """; = =!!*%%[! % % #???? ## | | """;% %%=! % =*[[=[;;### %% ;;######????? ## | | "" "#[! !%! ; ! ##;;;;;;;######???????## | | !%=* """ ; # ##??##???????## | | "##"# [%="" ; " " " ! "##??##???????## | | # ### = ; """ # "" %= "##??########### | | # ### %+ """ # ""% "##??########### | | ##"## ; """ # %%% T##????????????# | | % % E;##+;;;# """ # """% "##????????????# | | % " ## """ # """ ##????????????# | | %% % " ## " """ "##????????????# | | " "" ########### ###???????????# | | ##### " "" ###########"#+";#;####???????????# | | ##### " "" ##????## ##???????????# | | ???## # ##????## ##???????????# | | ???## " ##????#" ##???????????# | | ???## ########????## " " ##???????????# | | ???## ########????## "" " " ##???????????# | | ##### ##??????????## ##???????????# | | ##### ###########?## " "" ##???????????# | | # ###########?## """ " ##???????????### | | "" # # ##?## " ##?????????????? | | "" # # ##?## #########??????? | +----------------------------------------------------+ Best States ------------- Heat Dissipation 104 Energy Generation 43 Energy Capacity 1650 Matter Stores 300 Matter Capacity 300 Sight Range 23 Robot Scan Range 16 Terrain Scan Density 10 ECM Strength 2 Jamming Range 12 Cloak Strength 2 Power Amplification 20 Additional Mass Support 12 Armor Coverage 525 Resistance: TH 30 Resistance: EX 25 Core Shielding 90 Propulsion Shielding 66 Weapon Shielding 90 Phase Shifting 5 Evasion (%) 84 Targeting Accuracy 56 Target Analysis 12 Core Analysis 12 Armor Integrity Analysis 40 Recoil Reduction 2 Offensive Hacking 33 Defensive Hacking 14 Item Schematics ----------------- Exp. Heat Sink | -4/Zhirov | Free Exp. Optical Array | -4/Zhirov | Free Assault Drone Bay | -4/Zhirov | Free Imp. Arc Thrower | -4/Zhirov | Free Robot Schematics ------------------ None Fabricated ------------ Nothing Repaired ---------- Field Propulsion Drive | 6% | -2/Quarantine Studied --------- Flight Unit | -6/Factory | Hacked Lgt. Nuclear Core | -6/Factory | Hacked VTOL Module | -4/Factory | Hacked Mic. Antimatter Reactor | -3/Testing | Hacked Field Propulsion Drive | -2/Quarantine | Hacked Alien Tech Used ----------------- Integrated Dissipator Achievements -------------- Anti-science Crusade Inventory(Loot) No Room For Error Perfect Aim Challenges ------------ None Game ------ Seed TargetInterceptScrap Manual? 0 Play Time 04:00:50 Cumulative 142.1 hours Start 2026.03.13 @ 12:41:55 End 2026.03.13 @ 16:59:06 Sessions 1 Manual Loads 0 Difficulty Rogue Special Mode None Game No. 150 Rogue 75 Adventurer 75 Explorer 0 Win Type - Total 5 Types 5/0/0/0/0/0/0/0/0/0 Lore% 62 Gallery% 59 Achievement% 49 Wizard Run 0 Options --------- Layout 2 ASCII 0 Keyboard 0 Movement Numpad Keybinds 0 Fullscreen 2 Font 24/Smallcaps Map View 50x44 Zoom Use 0% Tactical HUD 1 Map Filters NONE Filters NONE Steam 1 RUN: 088f1d94-7fcc-446b-8167-a23e600f0580